bitfinex-derivatives/quotes_SOLF0:USTF0_20250730
["timestamp","ask_amount","ask_price","bid_price","bid_amount"]
[1753889934459,2.17,179.16,179.08,104.42]
[1753889934757,5.69857621,179.13,179.1,3.02]
[1753889934950,2.17,179.12,179.1,3.02]
[1753889935150,3.52857621,179.13,179.12,3.02]
[1753889935349,3.52857621,179.15,179.09,3.02]
[1753889935549,5.5824,179.14,179.09,3.02]
[1753889935749,5.5824,179.14,179.11,5.5831]
[1753889936056,3.52857621,179.15,179.12,3.02]
[1753889936352,3.52857621,179.17,179.14,3.02]
[1753889936955,3.52857621,179.19,179.14,3.02]
[1753889937455,2.17,179.18,179.13,3.02]
[1753889937657,2.17,179.17,179.1,3.52857621]
[1753889937852,5.5821,179.15,179.11,8.6029]
[1753889938156,5.69857621,179.17,179.12,3.02]
[1753889938157,2.17,179.16,179.12,3.02]
[1753889938347,5.5822,179.15,179.13,3.02]
[1753889938552,5.5822,179.15,179.14,3.12]
[1753889939057,5.68857621,179.19,179.11,3.12]
[1753889939362,5.5809,179.18,179.13,3.12]
[1753889939553,3.52857621,179.19,179.13,3.12]
[1753889939756,2.16,179.17,179.14,3.12]
[1753889940162,5.5816,179.16,179.15,3.12]
[1753889940350,5.68857621,179.19,179.16,3.12]
[1753889940657,5.5811,179.18,179.14,5.582]
[1753889940863,2.16,179.18,179.16,3.12]
[1753889941047,2.16,179.17,179.15,3.12]
[1753889942360,7.7412,179.17,179.15,3.12]
[1753889942861,5.5811,179.18,179.15,3.12]
[1753889943058,5.5811,179.18,179.16,3.12]
[1753889943255,5.68857621,179.19,179.17,3.12]
[1753889943458,5.5809,179.18,179.17,3.12]
[1753889943657,5.68857621,179.19,179.17,3.12]
[1753889943852,9.10857621,179.21,179.17,5.581]
[1753889944068,9.10857621,179.21,179.19,3.12]
[1753889944362,9.10857621,179.21,179.2,3.12]
[1753889944563,5.68857621,179.23,179.21,3.12]
[1753889945160,3.52857621,179.25,179.23,3.12]
[1753889945361,3.52857621,179.27,179.19,3.12]
[1753889945663,5.5789,179.25,179.19,3.52857621]
[1753889945863,5.5789,179.25,179.2,3.12]
[1753889946157,2.16,179.26,179.2,3.12]
[1753889946363,7.7392,179.24,179.21,3.12]
[1753889946558,2.16,179.24,179.22,3.12]
[1753889946758,7.7391,179.24,179.22,3.12]
[1753889946954,5.5791,179.24,179.23,3.12]
[1753889947557,2.16,179.24,179.18,3.12]
[1753889947863,3.52857621,179.28,179.17,3.12]
[1753889947864,5.68857621,179.23,179.17,3.12]
[1753889948064,7.7399,179.22,179.17,8.7009]
[1753889948266,2.16,179.22,179.18,3.12]
[1753889948462,3.52857621,179.23,179.18,3.12]
[1753889948660,3.52857621,179.21,179.16,3.12]
[1753889948966,2.16,179.2,179.18,3.12]
[1753889949266,5.5808,179.19,179.18,3.12]
[1753889949563,5.5801,179.21,179.15,3.12]
[1753889949961,3.52857621,179.23,179.17,5.5811]
[1753889950262,2.16,179.2,179.17,3.12]
[1753889950460,7.7405,179.2,179.16,5.5813]
[1753889950661,7.7405,179.2,179.18,3.12]
[1753889950860,2.16,179.19,179.14,3.52857621]
[1753889951059,2.16,179.19,179.17,3.12]
[1753889951254,5.68857621,179.21,179.15,3.12]
[1753889951764,3.52857621,179.21,179.17,3.12]
[1753889951960,2.16,179.19,179.17,3.12]
[1753889952258,2.16,179.17,179.15,3.12]
[1753889952763,7.7413,179.17,179.14,5.5821]
[1753889952960,5.68857621,179.19,179.16,3.12]
[1753889953162,3.52857621,179.19,179.13,3.12]
[1753889953562,3.52857621,179.19,179.16,3.12]
[1753889953864,2.16,179.21,179.16,3.12]
[1753889954259,5.5806,179.19,179.16,3.12]
[1753889954558,2.16,179.2,179.17,3.12]
[1753889954757,5.5809,179.19,179.18,3.12]
[1753889955365,5.5813,179.17,179.15,3.12]
[1753889955565,2.16,179.16,179.14,3.12]
[1753889955768,5.68857621,179.16,179.11,3.12]
[1753889955966,2.16,179.15,179.12,3.12]
[1753889956166,2.16,179.15,179.13,3.12]
[1753889956368,5.5822,179.14,179.13,3.12]
[1753889956660,2.16,179.15,179.14,3.12]
[1753889956867,9.11027621,179.16,179.15,3.12]
[1753889957366,5.5822,179.14,179.11,5.583]
[1753889957570,5.5822,179.14,179.13,3.12]
[1753889958266,3.52857621,179.16,179.09,3.12]
[1753889958667,5.5822,179.14,179.13,3.12]
[1753889958966,2.16,179.14,179.11,3.12]
[1753889959166,2.16,179.14,179.08,3.52857621]
[1753889959167,2.16,179.14,179.12,3.12]
[1753889959363,5.5827,179.13,179.12,3.12]
[1753889959757,2.16,179.13,179.08,3.12]
[1753889959976,2.16,179.12,179.08,3.12]
[1753889960268,5.68857621,179.12,179.09,3.12]
[1753889960465,5.5833,179.11,179.08,3.12]
[1753889960967,2.16,179.11,179.08,3.12]
[1753889961166,2.16,179.11,179.09,3.12]
[1753889961469,2.16,179.11,179.07,104.4]
[1753889961470,3.52857621,179.12,179.08,3.12]
[1753889961665,3.52857621,179.14,179.08,3.12]
[1753889961866,5.68857621,179.14,179.08,3.12]
[1753889962171,5.5833,179.11,179.08,8.7039]
[1753889962466,5.5833,179.11,179.1,3.12]
[1753889962868,5.5829,179.12,179.1,3.12]
[1753889963066,2.16,179.13,179.07,104.4]
[1753889963269,2.16,179.09,179.07,104.4]
[1753889963565,2.16,179.09,179.07,3.12]
[1753889964070,2.16,179.09,179.04,3.52857621]
[1753889964269,5.5842,179.08,179.05,5.5849]
[1753889964758,2.16,179.09,179.06,3.12]
[1753889964958,11.1633,179.16,179.02,3.52857621]
[1753889964959,2.16,179.07,179.02,3.12]
[1753889965160,2.16,179.06,179.02,3.12]
[1753889965767,5.68857621,179.08,179.02,3.12]
[1753889965964,2.16,179.15,179.02,3.12]
[1753889966162,3.52857621,179.11,179.09,3.12]
[1753889966366,3.52857621,179.11,179.1,3.12]
[1753889966562,9.11187621,179.11,179.1,3.12]
[1753889966770,11.27187621,179.11,179.1,3.12]
[1753889968070,3.52857621,179.13,179.12,3.12]
[1753889968772,5.5823,179.14,179.12,3.12]
[1753889968975,5.5823,179.14,179.13,3.25]
[1753889969672,3.52857621,179.17,179.1,3.25]
[1753889969870,5.69857621,179.18,179.1,3.25]
[1753889970074,5.69857621,179.18,179.14,5.5819]
[1753889970374,3.52857621,179.21,179.14,3.25]
[1753889970564,4.05411356,179.2,179.14,3.25]
[1753889970769,5.5803,179.2,179.17,3.25]
[1753889971065,5.5803,179.2,179.19,3.25]
[1753889971270,2.17,179.19,179.17,3.25]
[1753889971471,2.17,179.18,179.14,3.25]
[1753889971676,5.69857621,179.21,179.14,3.25]
[1753889971972,5.69857621,179.21,179.16,3.25]
[1753889972274,2.17,179.2,179.14,3.25]
[1753889972471,5.581,179.18,179.14,5.5821]
[1753889972674,5.581,179.18,179.15,3.25]
[1753889972875,2.17,179.2,179.15,3.25]
[1753889973269,2.17,179.22,179.15,6.77857621]
[1753889973465,2.17,179.22,179.16,3.25]
[1753889973671,5.5805,179.2,179.16,8.8312]
[1753889973876,5.5805,179.2,179.16,3.25]
[1753889975077,5.5805,179.2,179.17,3.25]
[1753889975374,2.17,179.22,179.17,3.25]
[1753889975774,2.17,179.17,179.15,3.25]
[1753889976174,5.5812,179.17,179.14,3.25]
[1753889976376,2.17,179.2,179.14,3.25]
[1753889976572,3.52857621,179.19,179.14,3.25]
[1753889976779,7.7518,179.15,179.14,3.25]
[1753889976984,7.7518,179.15,179.09,3.52857621]
[1753889977175,7.7518,179.15,179.13,3.25]
[1753889977477,5.5818,179.15,179.14,3.25]
[1753889978980,5.5823,179.14,179.1,5.5833]
[1753889979184,2.17,179.16,179.11,3.25]
[1753889979375,2.17,179.14,179.12,3.25]
[1753889979580,5.5827,179.13,179.12,3.25]
[1753889979982,3.52857621,179.15,179.07,107.88857621]
[1753889980180,5.5824,179.14,179.1,5.5832]
[1753889980375,5.5824,179.14,179.11,3.25]
[1753889981182,3.52857621,179.13,179.08,3.25]
[1753889981382,2.17,179.12,179.07,104.36]
[1753889981582,2.17,179.12,179.1,3.25]
[1753889981782,2.17,179.09,179.03,3.52857621]
[1753889981984,2.17,179.07,179.05,3.25]
[1753889982182,5.5841,179.08,179.04,5.585]
[1753889982381,3.52857621,179.09,179.0,375.16]
[1753889982382,3.52857621,179.11,179.05,3.25]
[1753889982882,5.5836,179.1,179.07,3.25]
[1753889983673,5.5836,179.1,179.07,5.5843]
[1753889983878,5.5832,179.11,179.08,3.25]
[1753889984086,5.69857621,179.12,179.05,3.52857621]
[1753889984287,5.69857621,179.12,179.06,3.25]
[1753889984488,5.5839,179.09,179.07,3.25]
[1753889984882,5.5839,179.09,179.08,3.25]
[1753889986785,7.7535,179.1,179.08,3.25]
[1753889986985,5.5835,179.1,179.09,3.25]
[1753889988085,2.17,179.09,179.02,3.25]
[1753889988288,2.17,179.06,179.03,3.25]
[1753889988591,2.17,179.06,179.04,3.25]
[1753889988790,7.7547,179.06,179.0,375.16]
[1753889988993,5.5847,179.06,179.05,3.25]
[1753889989182,3.52857621,179.07,179.0,375.16]
[1753889989380,3.52857621,179.09,179.06,3.25]
[1753889989580,5.69857621,179.09,179.07,3.25]
[1753889989880,7.7543,179.08,179.07,3.25]
[1753889990084,2.17,179.08,179.03,5.5855]
[1753889990289,2.17,179.08,179.06,3.25]
[1753889990490,7.7543,179.07,179.06,3.25]
[1753889990791,5.5843,179.07,179.06,3.25]
[1753889991487,5.5843,179.07,179.04,5.5852]
[1753889991685,5.69857621,179.09,179.05,3.25]
[1753889991886,5.69857621,179.09,179.02,3.25]
[1753889992086,3.52857621,179.09,179.02,3.25]
[1753889992286,2.17,179.11,179.07,3.25]
[1753889992287,5.69857621,179.11,179.07,3.25]
[1753889992486,5.69857621,179.13,179.07,3.25]
[1753889992683,3.52857621,179.13,179.07,3.25]
[1753889992986,5.69857621,179.16,179.08,3.25]
[1753889993187,2.17,179.15,179.08,3.25]
[1753889993388,3.52857621,179.16,179.12,3.25]
[1753889993692,3.52857621,179.2,179.12,3.25]
[1753889993994,2.17,179.21,179.17,3.25]
[1753889993995,5.5808,179.19,179.17,3.25]
[1753889994290,5.5808,179.19,179.16,5.5813]
[1753889994496,5.5808,179.19,179.18,3.25]
[1753889994795,5.5804,179.2,179.18,3.25]
[1753889994994,5.5804,179.2,179.19,3.25]
[1753889995195,5.5804,179.2,179.17,5.5812]
[1753889995196,3.52857621,179.24,179.16,3.25]
[1753889995400,3.52857621,179.26,179.18,3.25]
[1753889996189,2.17,179.25,179.22,3.25]
[1753889996498,2.17,179.25,179.18,3.25]
[1753889996699,5.5799,179.22,179.18,8.8308]
[1753889996891,5.5799,179.22,179.19,3.25]
[1753889997093,5.5799,179.22,179.18,3.25]
[1753889997393,5.58,179.21,179.18,5.5806]
[1753889997592,2.17,179.24,179.13,104.32]
[1753889997593,2.17,179.23,179.16,3.25]
[1753889997798,3.52857621,179.22,179.16,5.5814]
[1753889997987,7.7508,179.19,179.14,3.25]
[1753889998192,5.69857621,179.22,179.17,5.5812]
[1753889998396,5.5805,179.2,179.17,5.5812]
[1753889998701,5.5805,179.2,179.19,3.25]
[1753889998893,3.52857621,179.22,179.14,3.52857621]
[1753889999095,2.17,179.21,179.18,3.1]
[1753889999397,2.17,179.21,179.15,3.1]
[1753889999699,3.52857621,179.22,179.15,3.1]
[1753890000293,5.5805,179.2,179.18,3.1]
[1753890000493,5.5805,179.2,179.19,3.1]
[1753890001598,3.52857621,179.2,179.13,104.32]
[1753890001894,2.17,179.18,179.16,3.1]
[1753890002094,7.7509,179.18,179.17,3.1]
[1753890002297,3.52857621,179.22,179.15,3.1]
[1753890002492,5.5798,179.22,179.18,5.5807]
[1753890002698,5.5798,179.22,179.19,3.1]
[1753890002901,2.17,179.24,179.19,3.1]
[1753890003101,2.17,179.24,179.18,3.1]
[1753890003291,11.1556,179.29,179.17,3.1]
[1753890003292,2.17,179.22,179.17,3.1]
[1753890003496,3.52857621,179.23,179.15,3.1]
[1753890003691,5.69857621,179.23,179.15,3.1]
[1753890004098,2.17,179.22,179.15,3.1]
[1753890004604,5.5805,179.2,179.17,3.1]
[1753890004997,3.52857621,179.23,179.14,3.52857621]
[1753890005200,5.5803,179.2,179.19,3.1]
[1753890005696,5.5807,179.19,179.16,5.5814]
[1753890005897,5.5807,179.19,179.18,3.1]
[1753890007302,5.5803,179.2,179.18,3.1]
[1753890007601,5.69857621,179.25,179.19,3.1]
[1753890008105,5.5796,179.23,179.21,3.1]
[1753890008312,5.5796,179.23,179.22,3.1]
[1753890008601,3.52857621,179.26,179.21,5.5799]
[1753890008801,5.69857621,179.26,179.23,3.1]
[1753890009006,5.5782,179.27,179.2,3.52857621]
[1753890009304,5.5782,179.27,179.21,3.1]
[1753890009700,3.52857621,179.28,179.21,3.1]
[1753890009906,2.17,179.27,179.21,3.1]
[1753890010600,2.17,179.29,179.21,3.1]
[1753890010907,5.69857621,179.29,179.21,3.1]
[1753890011499,11.27627621,179.29,179.25,5.5787]
[1753890011706,5.69857621,179.29,179.23,3.1]
[1753890012507,7.7481,179.28,179.24,3.1]
[1753890012702,7.7481,179.28,179.25,3.1]
[1753890013102,7.7481,179.28,179.26,3.1]
[1753890013804,5.5781,179.27,179.26,3.1]
[1753890014507,7.7481,179.27,179.24,3.1]
[1753890014706,7.7481,179.27,179.25,3.1]
[1753890015210,5.5779,179.28,179.24,5.579]
[1753890015399,5.5779,179.28,179.27,3.1]
[1753890015805,7.7479,179.28,179.27,3.1]
[1753890016106,9.10617621,179.29,179.27,3.1]
[1753890016305,11.27617621,179.29,179.27,3.1]
[1753890016502,5.69857621,179.29,179.27,3.1]
[1753890016908,3.52857621,179.29,179.23,3.1]
[1753890017311,5.5777,179.29,179.25,5.5787]
[1753890017508,2.17,179.3,179.23,3.1]
[1753890018512,3.52857621,179.27,179.19,3.52857621]
[1753890018701,2.17,179.26,179.2,3.1]
[1753890018905,5.69857621,179.28,179.22,3.1]
[1753890019609,5.69857621,179.28,179.24,3.1]
[1753890019808,2.17,179.3,179.24,3.1]
[1753890020000,2.17,179.3,179.26,3.1]
[1753890020409,2.17,179.3,179.25,5.5786]
[1753890020613,2.17,179.3,179.24,3.1]
[1753890022315,5.5778,179.28,179.25,5.5787]
[1753890022611,5.5778,179.28,179.27,3.1]
[1753890023412,3.52857621,179.29,179.24,3.1]
[1753890023818,2.16,179.26,179.24,3.1]
[1753890024014,7.7386,179.26,179.24,3.1]
[1753890024216,5.68857621,179.29,179.24,3.1]
[1753890024811,3.52857621,179.29,179.22,3.1]
[1753890025116,5.577,179.31,179.26,3.1]
[1753890025311,5.68857621,179.32,179.26,3.1]
[1753890025815,5.5773,179.3,179.27,5.5779]
[1753890026110,5.68857621,179.32,179.26,3.1]
[1753890026314,104.14,179.34,179.26,3.1]
[1753890026315,109.82857621,179.34,179.26,3.1]
[1753890026715,2.16,179.35,179.27,3.52857621]
[1753890027018,5.68857621,179.35,179.28,3.1]
[1753890027212,5.5763,179.33,179.3,5.5771]
[1753890027415,7.7363,179.33,179.31,3.1]
[1753890027618,2.16,179.31,179.29,3.1]
[1753890027921,2.16,179.28,179.17,3.1]
[1753890028218,5.68857621,179.28,179.21,3.1]
[1753890028424,2.16,179.27,179.21,3.1]
[1753890028719,5.68857621,179.27,179.2,3.19]
[1753890029018,5.5788,179.25,179.23,3.19]
[1753890029520,5.579,179.24,179.23,3.19]
[1753890029815,2.16,179.23,179.21,3.19]
[1753890030022,11.26757621,179.25,179.21,5.5799]
[1753890030214,11.26757621,179.25,179.23,3.19]
[1753890030408,11.26757621,179.25,179.24,3.19]
[1753890030610,11.26757621,179.25,179.17,3.52857621]
[1753890030611,2.16,179.27,179.18,3.19]
[1753890030811,3.52857621,179.26,179.18,3.19]
[1753890031016,5.5789,179.25,179.21,5.5797]
[1753890031210,3.52857621,179.26,179.22,3.19]
[1753890031616,3.52857621,179.28,179.22,3.19]
[1753890032124,9.10647621,179.28,179.25,5.5787]
[1753890032419,9.10647621,179.28,179.27,3.19]
[1753890032616,11.26647621,179.28,179.27,3.19]
[1753890032921,5.5775,179.29,179.27,3.19]
[1753890033123,3.52857621,179.3,179.29,3.19]
[1753890033822,3.52857621,179.32,179.29,3.19]
[1753890034019,3.52857621,179.32,179.3,3.19]
[1753890034320,5.5769,179.31,179.3,3.19]
[1753890034521,5.5769,179.31,179.15,27.9333]
[1753890034522,2.16,179.31,179.24,3.19]
[1753890034716,9.10647621,179.28,179.24,8.7688]
[1753890034918,5.68857621,179.28,179.25,3.19]
[1753890035113,2.16,179.25,179.22,3.19]
[1753890035319,11.26767621,179.24,179.22,3.19]
[1753890035923,9.10767621,179.24,179.23,3.19]
[1753890036320,3.52857621,179.24,179.23,3.19]
[1753890036724,5.5794,179.23,179.16,3.52857621]
[1753890036920,5.5794,179.23,179.21,3.19]
[1753890037120,5.68857621,179.24,179.22,3.19]
[1753890037421,9.10777621,179.24,179.23,3.19]
[1753890037623,11.26777621,179.24,179.2,5.5801]
[1753890037926,9.10777621,179.24,179.23,3.19]
[1753890038224,2.16,179.23,179.2,3.19]
[1753890038424,3.52857621,179.22,179.2,3.19]
[1753890038622,9.10837621,179.22,179.2,3.19]
[1753890038925,9.10837621,179.22,179.21,3.19]
[1753890039419,3.52857621,179.22,179.21,3.19]
[1753890040222,9.10827621,179.22,179.21,3.19]
[1753890040522,3.52857621,179.22,179.21,3.19]
[1753890041126,6.76535873,179.28,179.21,3.19]
[1753890041320,3.52857621,179.25,179.21,3.19]
[1753890041515,4.08823251,179.24,179.21,5.5797]
[1753890041720,3.52857621,179.25,179.18,3.52857621]
[1753890041926,3.52857621,179.25,179.19,3.19]
[1753890042828,3.52857621,179.25,179.24,3.19]
[1753890044729,9.10677621,179.27,179.23,5.5792]
[1753890044923,3.52857621,179.29,179.24,3.19]
[1753890045128,3.52857621,179.3,179.24,3.19]
[1753890045330,4.08863317,179.29,179.24,6.71857621]
[1753890045532,3.52857621,179.32,179.25,3.19]
[1753890045829,4.08886522,179.31,179.25,3.19]
[1753890046030,4.08886522,179.3,179.29,3.19]
[1753890046430,3.52857621,179.32,179.24,3.52857621]
[1753890046733,2.17,179.33,179.3,3.19]
[1753890046734,4.08855251,179.31,179.3,3.19]
[1753890046922,5.69857621,179.33,179.31,3.19]
[1753890047127,4.08895173,179.32,179.31,3.19]
[1753890048131,9.66555173,179.32,179.31,3.19]
[1753890048730,4.08895173,179.32,179.31,3.19]
[1753890049428,107.60857621,179.37,179.32,3.19]
[1753890049728,5.5756,179.35,179.32,3.19]
[1753890049931,4.0889118,179.34,179.33,3.19]
[1753890050132,6.2589118,179.34,179.33,3.19]
[1753890050327,11.8348118,179.34,179.33,3.19]
[1753890050533,9.6648118,179.34,179.33,3.19]
[1753890051131,5.5759,179.34,179.33,3.19]
[1753890051327,5.5757,179.35,179.29,3.52857621]
[1753890051530,3.52857621,179.37,179.3,3.19]
[1753890051726,4.08687709,179.36,179.3,3.19]
[1753890051931,4.08687709,179.35,179.34,3.19]
[1753890052731,4.08687709,179.35,179.29,3.52857621]
[1753890052732,5.5755,179.36,179.29,3.52857621]
[1753890052932,5.5755,179.36,179.35,3.19]
[1753890053234,9.65888216,179.36,179.35,3.19]
[1753890054634,4.08338216,179.36,179.35,3.19]
[1753890055237,9.65868216,179.36,179.35,3.19]
[1753890055535,6.25338216,179.36,179.31,3.19]
[1753890055736,2.17,179.36,179.31,3.19]
[1753890055937,3.52857621,179.37,179.34,3.19]
[1753890056134,2.17,179.34,179.3,3.19]
[1753890056332,2.17,179.32,179.3,3.19]
[1753890056540,2.17,179.32,179.25,3.19]
[1753890056734,3.52857621,179.27,179.2,3.19]
[1753890056939,3.52857621,179.25,179.2,3.19]
[1753890057133,5.5786,179.26,179.2,3.19]
[1753890057334,3.52857621,179.27,179.2,3.19]
[1753890057528,5.5786,179.26,179.22,5.5795]
[1753890057733,3.52857621,179.27,179.23,3.19]
[1753890058033,5.69857621,179.27,179.24,3.19]
[1753890058233,5.579,179.25,179.23,3.19]
[1753890058441,2.17,179.26,179.23,3.19]
[1753890058738,2.17,179.26,179.24,3.19]
[1753890059538,2.17,179.26,179.18,5.75440701]
[1753890059743,7.7484,179.26,179.25,3.19]
[1753890060041,2.16,179.27,179.23,3.19]
[1753890060236,2.16,179.27,179.19,3.19]
[1753890060444,2.16,179.29,179.21,3.19]
[1753890060741,5.5784,179.26,179.25,3.19]
[1753890060932,2.16,179.26,179.21,3.19]
[1753890061138,2.16,179.27,179.19,3.19]
[1753890061339,7.7392,179.24,179.22,3.19]
[1753890061740,7.7392,179.24,179.23,3.19]
[1753890062136,5.5792,179.24,179.23,3.19]
[1753890062640,5.5792,179.24,179.12,16.748]
[1753890062641,5.5798,179.22,179.17,3.19]
[1753890062848,7.91440701,179.22,179.15,3.19]
[1753890063139,2.16,179.21,179.15,3.19]
[1753890063339,2.16,179.26,179.15,3.19]
[1753890063543,2.16,179.26,179.17,3.19]
[1753890064045,2.16,179.26,179.21,5.5798]
[1753890064245,2.16,179.26,179.23,3.19]
[1753890064447,2.16,179.25,179.23,3.19]
[1753890064644,2.16,179.24,179.21,3.19]
[1753890064849,5.75440701,179.25,179.21,3.19]
[1753890065053,2.16,179.23,179.21,3.19]
[1753890065749,7.7397,179.23,179.21,3.19]
[1753890066148,5.5797,179.23,179.22,3.19]
[1753890067148,7.7392,179.24,179.22,3.19]
[1753890067352,2.16,179.24,179.22,3.19]
[1753890068053,2.16,179.22,179.2,3.19]
[1753890068351,5.75440701,179.21,179.13,3.19]
[1753890068549,11.33450701,179.21,179.19,3.19]
[1753890068852,11.33450701,179.21,179.2,3.19]
[1753890070144,5.75440701,179.21,179.2,3.19]
[1753890071557,7.91440701,179.21,179.12,5.75440701]
[1753890071755,7.91440701,179.21,179.19,3.19]
[1753890072152,7.91440701,179.21,179.13,3.19]
[1753890072757,5.5805,179.2,179.16,5.5813]
[1753890072958,5.5805,179.2,179.13,3.19]
[1753890073356,5.5805,179.2,179.18,3.19]
[1753890073557,5.75440701,179.21,179.12,5.75440701]
[1753890073859,5.75440701,179.23,179.15,3.19]
[1753890074254,5.5795,179.23,179.15,3.19]
[1753890074459,2.16,179.24,179.21,5.58]
[1753890074660,5.5797,179.22,179.15,3.19]
[1753890074861,2.16,179.24,179.15,3.19]
[1753890075254,5.75440701,179.23,179.15,3.19]
[1753890075553,5.75440701,179.21,179.17,5.5809]
[1753890075859,7.7405,179.2,179.18,3.19]
[1753890076060,5.75440701,179.21,179.12,3.19]
[1753890076263,11.33470701,179.21,179.12,8.94440701]
[1753890076562,11.33470701,179.21,179.13,3.19]
[1753890076762,5.5803,179.2,179.13,3.19]
[1753890077262,13.49460701,179.21,179.19,3.19]
[1753890077463,2.16,179.2,179.16,3.19]
[1753890078362,7.7405,179.2,179.18,3.19]
[1753890078560,5.75440701,179.21,179.13,3.19]
[1753890078954,2.16,179.2,179.18,5.5808]
[1753890079163,2.16,179.2,179.19,3.19]
[1753890079559,11.33470701,179.21,179.19,3.19]
[1753890079762,13.49470701,179.21,179.19,3.19]
[1753890079963,5.5803,179.2,179.19,3.19]
[1753890080165,7.7403,179.2,179.19,3.19]
[1753890080363,2.16,179.2,179.19,3.19]
[1753890080765,5.69377346,179.2,179.19,3.19]
[1753890080966,3.53377346,179.2,179.19,3.19]
[1753890081771,3.53377346,179.2,179.19,8.7706]
[1753890083668,3.53377346,179.2,179.19,3.19]
[1753890084067,3.53377346,179.22,179.21,3.19]
[1753890084267,5.69377346,179.24,179.21,3.19]
[1753890084460,3.53377346,179.25,179.21,3.19]
[1753890084664,5.5792,179.24,179.23,3.19]
[1753890085060,7.7392,179.24,179.22,3.19]
[1753890085267,2.16,179.24,179.22,3.19]
[1753890085667,2.16,179.23,179.22,3.19]
[1753890086171,5.69377346,179.23,179.17,3.19]
[1753890086471,3.53377346,179.28,179.11,107.55377346]
[1753890086472,5.69377346,179.19,179.11,107.55377346]
[1753890086674,5.69377346,179.19,179.17,3.19]
[1753890086868,5.69377346,179.19,179.11,107.55377346]
[1753890087073,3.53377346,179.21,179.14,3.19]
[1753890087478,3.53377346,179.21,179.19,5.5805]
[1753890087674,3.53377346,179.21,179.2,3.19]
[1753890088574,3.53377346,179.23,179.21,5.5797]
[1753890088775,3.53377346,179.23,179.22,3.05]
[1753890089881,2.17,179.22,179.16,3.05]
[1753890090176,3.53377346,179.28,179.1,386.0867]
[1753890090177,2.17,179.18,179.12,3.05]
[1753890090569,5.70377346,179.17,179.12,3.05]
[1753890090777,2.17,179.16,179.12,3.05]
[1753890091077,2.17,179.16,179.11,103.98]
[1753890091265,2.17,179.16,179.14,3.05]
[1753890091471,2.17,179.16,179.15,3.05]
[1753890091669,11.28517346,179.17,179.15,3.05]
[1753890092274,2.17,179.2,179.12,6.58377346]
[1753890092477,3.53377346,179.2,179.13,3.05]
[1753890092975,5.70377346,179.22,179.14,3.53377346]
[1753890093174,3.53377346,179.22,179.15,3.05]
[1753890093375,7.7502,179.21,179.18,8.6307]
[1753890093580,3.53377346,179.22,179.15,3.05]
[1753890094074,5.58,179.21,179.18,5.5808]
[1753890094274,7.75,179.21,179.19,3.05]
[1753890094571,7.75,179.21,179.2,3.05]
[1753890094972,5.58,179.21,179.2,3.05]
[1753890095372,9.11357346,179.22,179.2,5.5802]